fUST/lending_fUST_20251113
["ID","MTS","AMOUNT","RATE_DAILY","PERIOD"]
[393749834,1762963832668,-395.34011263,0.00024662,2]
[393749835,1762963832678,-400.18833243,0.00024754,2]
[393749836,1762963832687,-150.0,0.00024758,2]
[393749837,1762963832697,-2257.65573079,0.00024762,2]
[393749838,1762963832709,-1200.0,0.0002486,2]
[393749839,1762963832718,-191.98515676,0.00024861,2]
[393749841,1762963832728,-300.0,0.00024861,2]
[393749842,1762963832738,-300.0,0.00024861,2]
[393749843,1762963832748,-300.0,0.00024861,2]
[393749844,1762963832758,-1200.0,0.00024862,2]
[393749845,1762963832768,-512.82140284,0.00024873,2]
[393749846,1762963832777,-135184.156289,0.000249,2]
[393749847,1762963832787,-1907.03109347,0.00025262,2]
[393749848,1762963832796,-600.0,0.00025362,20]
[393749850,1762963832808,-390.48259364,0.00025973,2]
[393749852,1762963832825,-500.0,0.00025973,2]
[393749853,1762963832834,-222.00075868,0.00025973,2]
[393749854,1762963832843,-547.13375357,0.00025973,2]
[393749855,1762963832853,-500.0,0.00025973,2]
[393749856,1762963832864,-500.0,0.00025973,2]
[393749857,1762963832875,-2034.56293395,0.0002598,2]
[393749858,1762963832898,-511.26109325,0.0002598,2]
[393749905,1762963840402,-500.0,0.00024861,2]
[393749907,1762963840413,-22.42334545,0.00024861,2]
[393749911,1762963840429,-325.7409491,0.00024861,2]
[393749913,1762963840440,-500.0,0.00024861,2]
[393749915,1762963840451,-500.0,0.00024861,2]
[393749917,1762963840467,-500.0,0.00024861,2]
[393749919,1762963840478,-500.0,0.00024861,2]
[393749921,1762963840488,-91.4941059,0.00024861,2]
[393749923,1762963840501,-408.5058941,0.00024861,2]
[393749925,1762963840511,-500.0,0.00024861,2]
[393749927,1762963840521,-500.0,0.00024861,2]
[393749929,1762963840533,-158.17502204,0.00024861,2]
[393749931,1762963840546,-341.82497796,0.00024861,2]
[393749933,1762963840561,-500.0,0.00024861,2]
[393749935,1762963840571,-500.0,0.00024861,2]
[393749936,1762963840582,-500.0,0.00024861,2]
[393749937,1762963840593,-500.0,0.00024861,2]
[393749938,1762963840606,-500.0,0.00024861,2]
[393749939,1762963840616,-500.0,0.00024861,2]
[393749940,1762963840626,-500.0,0.00024861,2]
[393749941,1762963840637,-500.0,0.00024861,2]
[393749942,1762963840647,-500.0,0.00024861,2]
[393749943,1762963840657,-500.0,0.00024861,2]
[393749944,1762963840667,-500.0,0.00024861,2]
[393749945,1762963840677,-500.0,0.00024861,2]
[393749946,1762963840687,-410.47171833,0.00024861,2]
[393749947,1762963840697,-500.0,0.00024861,2]
[393749948,1762963840707,-210.07664195,0.00024861,2]
[393749949,1762963840722,-500.0,0.00024861,2]
[393749950,1762963840732,-500.0,0.00024861,2]
[393749951,1762963840742,-500.0,0.00024861,2]
[393749952,1762963840752,-500.0,0.00024861,2]
[393749953,1762963840762,-500.0,0.00024861,2]
[393749954,1762963840771,-500.0,0.00024861,2]
[393749955,1762963840781,-500.0,0.00024861,2]
[393749956,1762963840791,-500.0,0.00024861,2]
[393749958,1762963840803,-500.0,0.00024861,2]
[393749960,1762963840812,-500.0,0.00024861,2]
[393749962,1762963840822,-500.0,0.00024861,2]
[393749964,1762963840831,-500.0,0.00024861,2]
[393749966,1762963840841,-500.0,0.00024861,2]
[393749968,1762963840851,-500.0,0.00024861,2]
[393749970,1762963840861,-500.0,0.00024861,2]
[393749972,1762963840871,-500.0,0.00024861,2]
[393749974,1762963840882,-500.0,0.00024861,2]
[393749976,1762963840892,-500.0,0.00024861,2]
[393749978,1762963840902,-500.0,0.00024861,2]
[393749980,1762963840912,-500.0,0.00024861,2]
[393749982,1762963840922,-166.81179372,0.00024861,2]
[393749984,1762963840932,-500.0,0.00024861,2]
[393749986,1762963840943,-500.0,0.00024861,2]
[393749988,1762963840953,-500.0,0.00024861,2]
[393749990,1762963840969,-500.0,0.00024861,2]
[393749992,1762963840979,-500.0,0.00024861,2]
[393749994,1762963840988,-500.0,0.00024861,2]
[393749996,1762963840998,-500.0,0.00024861,2]
[393749998,1762963841008,-500.0,0.00024861,2]
[393750000,1762963841018,-500.0,0.00024861,2]
[393750002,1762963841029,-1746.10833857,0.00024861,2]
[393750004,1762963841039,-500.0,0.00024861,2]
[393750007,1762963841049,-500.0,0.00024861,2]
[393750009,1762963841059,-500.0,0.00024861,2]
[393750012,1762963841069,-500.0,0.00024861,2]
[393750014,1762963841079,-500.0,0.00024861,2]
[393750016,1762963841089,-500.0,0.00024861,2]
[393750018,1762963841100,-500.0,0.00024861,2]
[393750020,1762963841110,-500.0,0.00024861,2]
[393750022,1762963841120,-500.0,0.00024861,2]
[393750024,1762963841130,-500.0,0.00024861,2]
[393750026,1762963841140,-500.0,0.00024861,2]
[393750028,1762963841151,-500.0,0.00024861,2]
[393750030,1762963841161,-500.0,0.00024861,2]
[393750032,1762963841171,-500.0,0.00024861,2]
[393750034,1762963841180,-1746.10833857,0.00024861,2]
[393750036,1762963841190,-500.0,0.00024861,2]
[393750037,1762963841200,-1746.10833857,0.00024861,2]
[393750039,1762963841210,-1746.10833857,0.00024861,2]
[393750042,1762963841226,-1746.10833857,0.00024861,2]
[393750044,1762963841236,-42515.5614023,0.0002598,2]
[393750046,1762963841246,-25765.22860799,0.0002599,2]
[393750048,1762963841258,-1000.0,0.00026521,2]
[393750050,1762963841268,-799.54342765,0.00026521,2]
[393750052,1762963841277,-1000.0,0.00026521,2]
[393750054,1762963841287,-135184.156289,0.0002656,2]
[393750056,1762963841297,-58743.42187461,0.0002657,2]
[393750075,1762963841487,-1782.43218675,0.0002657,2]
[393750078,1762963841503,-14366.43922154,0.0002657,2]
[393750080,1762963841515,-1868.20937584,0.0002657,2]
[393750082,1762963841526,-8168.28144343,0.0002657,2]
[393750804,1762963847064,-339.55,0.0002598,10]
[393750806,1762963847073,-4937.05193894,0.0002657,2]
[393750808,1762963847086,-1304.02238801,0.0002657,2]
[393750811,1762963847097,-1183.95761952,0.0002657,2]
[393750813,1762963847108,-1286.44427966,0.0002657,2]
[393750815,1762963847119,-68531.5437828,0.0002657,2]
[393750817,1762963847131,-5241.15783026,0.0002657,2]
[393750844,1762963847400,-41538.30961839,0.0002657,2]
[393752287,1762964032348,419.989131,0.00013699,2]
[393752288,1762964109759,266.98637923,0.00036439,20]
[393752353,1762964396303,909.5,0.0003643,20]
[393752832,1762964545636,170.0,0.00026872,120]
[393752833,1762964546885,170.0,0.00028216,120]
[393752834,1762964548208,170.0,0.00029626,120]
[393752849,1762964549477,170.0,0.00031108,120]
[393753449,1762964914526,307.3944559,0.0001875,9]
[393753458,1762964919909,511.4,0.0001,2]
[393753459,1762964919937,7044.45451707,0.0001,2]
[393753463,1762964953971,109611.0,0.00036438,20]
[393753464,1762964966455,1012.30894506,0.00036438,30]
[393753468,1762965018727,799.25,0.00032877,120]
[393753556,1762965032753,-179.24634665,0.0002,2]
[393753557,1762965032764,-114.5840983,0.0002,2]
[393753611,1762965038645,-860.4159017,0.0002,2]
[393753613,1762965038656,-150.0,0.00020187,2]
[393753615,1762965038667,-367.2734253,0.00020187,2]
[393753617,1762965038679,-52.7157057,0.00020187,2]
[393753619,1762965038690,-562.82961152,0.0002196,10]
[393753621,1762965038700,-177.0,0.00022187,2]
[393753623,1762965038710,-156.20023091,0.00022989,2]
[393753626,1762965038720,-221.04391179,0.00023436,30]
[393753781,1762965040395,-778.95608821,0.00023436,30]
[393753783,1762965040405,-168.73590465,0.0002374,2]
[393753785,1762965040416,-182.52030241,0.00023888,2]
[393753788,1762965040426,-300.0,0.00023989,2]
[393753790,1762965040436,-867.0,0.00023989,2]
[393753792,1762965040446,-25765.22860799,0.0002399,2]
[393753793,1762965040455,-14028.9821172,0.0002399,2]
[393753796,1762965040465,-19774.79740838,0.00024142,2]
[393753797,1762965040474,-204.0,0.00024187,2]
[393753799,1762965040484,-400.18833243,0.00024649,2]
[393753801,1762965040493,-199.73483122,0.00024649,2]
[393753803,1762965040502,-10388.19215454,0.0002465,2]
[393753805,1762965040511,-380.0,0.00024658,2]
[393753807,1762965040520,-255.66,0.00024837,10]
[393753809,1762965040530,-240.35,0.00024837,10]
[393753811,1762965040540,-793.0,0.00024838,2]
[393753813,1762965040549,-500.0,0.0002486,2]
[393753815,1762965040558,-500.0,0.0002486,2]
[393753816,1762965040567,-500.0,0.0002486,2]
[393753818,1762965040576,-200.29,0.0002489,10]
[393753820,1762965040585,-142351.247623,0.000249,2]
[393753822,1762965040595,-500.0,0.00024973,2]
[393753824,1762965040604,-500.0,0.00024973,2]
[393753826,1762965040613,-7174.46044062,0.0002498,2]
[393754054,1762965042974,-3000.0,0.0002498,2]
[393754057,1762965042991,-3879.14115158,0.0002498,2]
[393754060,1762965043009,-33396.814282,0.0002498,2]
[393754062,1762965043021,-730.08120965,0.00025132,2]
[393754064,1762965043032,-674.94361861,0.00025703,2]
[393754066,1762965043043,-1271.3540623,0.0002578,2]
[393754068,1762965043056,-47450.4158742,0.0002586,2]
[393754073,1762965043071,-624.704748,0.0002587,7]
[393754076,1762965043085,-624.704748,0.0002587,7]
[393754079,1762965043096,-624.704748,0.0002587,7]
[393754083,1762965043110,-624.704748,0.0002587,7]
[393754085,1762965043122,-1039.070963,0.0002587,7]
[393754087,1762965043136,-1039.070963,0.0002587,7]
[393754089,1762965043147,-1039.070963,0.0002587,7]
[393754091,1762965043158,-1039.070963,0.0002587,7]
[393754094,1762965043172,-1043.72597,0.0002587,7]
[393754096,1762965043184,-1043.72597,0.0002587,7]
[393754098,1762965043196,-1043.72597,0.0002587,7]
[393754101,1762965043208,-1043.72597,0.0002587,7]
[393754103,1762965043220,-758.835944,0.0002587,7]
[393754105,1762965043232,-758.835944,0.0002587,7]
[393754107,1762965043243,-758.835944,0.0002587,7]
[393754110,1762965043256,-758.835944,0.0002587,7]
[393754112,1762965043268,-1073.74801,0.0002587,7]
[393754114,1762965043279,-1073.74801,0.0002587,7]
[393754116,1762965043290,-1073.74801,0.0002587,7]
[393754118,1762965043302,-1073.74801,0.0002587,7]
[393754121,1762965043314,-577.082317,0.0002587,7]
[393754123,1762965043326,-577.082317,0.0002587,7]
[393754125,1762965043337,-577.082317,0.0002587,7]
[393754127,1762965043349,-577.082317,0.0002587,7]
[393754130,1762965043360,-752.779915,0.0002587,7]
[393754132,1762965043373,-752.779915,0.0002587,7]
[393754134,1762965043387,-752.779915,0.0002587,7]
[393754136,1762965043399,-752.779915,0.0002587,7]
[393754138,1762965043411,-94900.8317484,0.0002587,2]
[393754141,1762965043423,-206.31321383,0.00025873,2]
[393754143,1762965043435,-500.0,0.00025873,2]
[393754145,1762965043447,-500.0,0.00025873,2]
[393754148,1762965043459,-309.45452301,0.00025873,2]
[393754398,1762965045944,-190.54547699,0.00025873,2]
[393754400,1762965045955,-500.0,0.00025873,2]
[393754402,1762965045965,-500.0,0.00025873,2]
[393754404,1762965045978,-500.0,0.00025873,2]
[393754406,1762965045987,-502.17060646,0.00025873,2]
[393754408,1762965045996,-407.16040105,0.00025873,2]
[393754410,1762965046008,-92.83959895,0.00025873,2]
[393754412,1762965046018,-500.0,0.00025873,2]
[393754414,1762965046027,-624.704748,0.0002588,7]
[393754416,1762965046037,-624.704748,0.0002588,7]
[393754418,1762965046046,-624.704748,0.0002588,7]
[393754420,1762965046058,-624.704748,0.0002588,7]
[393754422,1762965046067,-1039.070963,0.0002588,7]
[393754424,1762965046077,-1039.070963,0.0002588,7]
[393754426,1762965046086,-445.2220401,0.0002588,7]
[393754431,1762965046133,-593.8489229,0.0002588,7]
[393754433,1762965046143,-1039.070963,0.0002588,7]
[393754435,1762965046153,-1043.72597,0.0002588,7]
[393754437,1762965046162,-1043.72597,0.0002588,7]
[393754439,1762965046172,-1043.72597,0.0002588,7]
[393754441,1762965046182,-1043.72597,0.0002588,7]
[393754443,1762965046192,-758.835944,0.0002588,7]
[393754445,1762965046203,-758.835944,0.0002588,7]
[393754447,1762965046213,-758.835944,0.0002588,7]
[393754449,1762965046223,-758.835944,0.0002588,7]
[393754452,1762965046234,-1073.74801,0.0002588,7]
[393754454,1762965046243,-248.0844481,0.0002588,7]
[393755198,1762965183537,202.485968,0.00036442,60]
[393755201,1762965241879,1230.0,0.00018,2]
[393755205,1762965480549,208.02,0.00016384,2]
[393755446,1762965758836,167.79,0.00036458,20]
[393755500,1762965860219,19614.49312502,0.00036458,30]
[393755698,1762966001698,1700.0,0.00036458,20]
[393755828,1762966236924,-179.7312604,0.00022856,2]
[393755830,1762966236935,-150.0,0.00022912,2]
[393755832,1762966236945,-2933.0580522,0.00022968,2]
[393755834,1762966236954,-2983.25947509,0.00023785,2]
[393755836,1762966236963,-208.02,0.00023871,10]
[393755838,1762966236973,-287.0,0.00023872,2]
[393755840,1762966236982,-170.0,0.00023872,2]
[393755842,1762966236991,-157.0,0.00023872,2]
[393755844,1762966237000,-500.0,0.00023873,2]
[393755846,1762966237010,-500.0,0.00023873,2]
[393755848,1762966237019,-506.30280005,0.00023873,2]
[393755850,1762966237028,-500.0,0.00023873,2]
[393755852,1762966237037,-500.0,0.00023873,2]
[393755854,1762966237047,-500.0,0.00023873,2]
[393755856,1762966237056,-500.0,0.00023873,2]
[393755858,1762966237066,-500.0,0.00023873,2]
[393755861,1762966237075,-790.9815619,0.00023881,2]
[393755863,1762966237085,-500.0,0.00023881,2]
[393755865,1762966237094,-500.0,0.00023881,2]
[393755867,1762966237105,-500.0,0.00023881,2]
[393755869,1762966237115,-790.9815619,0.00023881,2]
[393755871,1762966237124,-500.0,0.00023881,2]
[393755873,1762966237134,-500.0,0.00023881,2]
[393755875,1762966237143,-500.0,0.00023881,2]
[393755876,1762966237152,-790.9815619,0.00023881,2]
[393755879,1762966237162,-500.0,0.00023881,2]
[393755880,1762966237171,-500.0,0.00023881,2]
[393755882,1762966237180,-500.0,0.00023881,2]
[393755884,1762966237190,-790.9815619,0.00023881,2]
[393755886,1762966237200,-500.0,0.00023881,2]
[393755889,1762966237210,-500.0,0.00023881,2]
[393755891,1762966237219,-790.9815619,0.00023881,2]
[393755892,1762966237228,-500.0,0.00023881,2]
[393755893,1762966237238,-500.0,0.00023881,2]
[393755894,1762966237247,-790.9815619,0.00023881,2]
[393755895,1762966237256,-500.0,0.00023881,2]
[393755896,1762966237266,-500.0,0.00023881,2]
[393755897,1762966237276,-790.9815619,0.00023881,2]
[393755898,1762966237285,-500.0,0.00023881,2]
[393755899,1762966237295,-500.0,0.00023881,2]
[393755900,1762966237304,-790.9815619,0.00023881,2]
[393755901,1762966237314,-500.0,0.00023881,2]
[393755902,1762966237323,-500.0,0.00023881,2]
[393755903,1762966237332,-500.0,0.00023881,2]
[393755904,1762966237343,-790.9815619,0.00023881,2]
[393755905,1762966237352,-500.0,0.00023881,2]
[393755906,1762966237362,-500.0,0.00023881,2]
[393755907,1762966237371,-500.0,0.00023881,2]
[393755908,1762966237382,-178.66774527,0.00023881,2]
[393755909,1762966237392,-790.9815619,0.00023881,2]
[393755910,1762966237403,-500.0,0.00023881,2]
[393755912,1762966237412,-790.9815619,0.00023881,2]
[393755914,1762966237423,-500.0,0.00023881,2]
[393755916,1762966237433,-500.0,0.00023881,2]
[393755918,1762966237442,-790.9815619,0.00023881,2]
[393755920,1762966237452,-500.0,0.00023881,2]
[393755922,1762966237462,-500.0,0.00023881,2]
[393755924,1762966237471,-790.9815619,0.00023881,2]
[393755926,1762966237481,-500.0,0.00023881,2]
[393755928,1762966237490,-500.0,0.00023881,2]
[393755930,1762966237500,-500.0,0.00023881,2]
[393755931,1762966237509,-790.9815619,0.00023881,2]
[393755934,1762966237519,-500.0,0.00023881,2]
[393755936,1762966237528,-500.0,0.00023881,2]
[393755938,1762966237537,-790.9815619,0.00023881,2]
[393755939,1762966237546,-790.9815619,0.00023881,2]
[393755940,1762966237556,-500.0,0.00023881,2]
[393755942,1762966237565,-500.0,0.00023881,2]
[393755957,1762966237698,-790.9815619,0.00023881,2]
[393755959,1762966237709,-500.0,0.00023881,2]
[393755961,1762966237719,-500.0,0.00023881,2]
[393755963,1762966237728,-500.0,0.00023881,2]
[393755965,1762966237737,-790.9815619,0.00023881,2]
[393755967,1762966237746,-500.0,0.00023881,2]
[393755969,1762966237755,-790.9815619,0.00023881,2]
[393755971,1762966237765,-500.0,0.00023881,2]
[393755973,1762966237774,-500.0,0.00023881,2]
[393755975,1762966237783,-790.9815619,0.00023881,2]
[393755977,1762966237792,-790.9815619,0.00023881,2]
[393755979,1762966237801,-500.0,0.00023881,2]
[393755981,1762966237811,-500.0,0.00023881,2]
[393755983,1762966237820,-500.0,0.00023881,2]
[393755985,1762966237829,-500.0,0.00023881,2]
[393755987,1762966237838,-790.9815619,0.00023881,2]
[393755989,1762966237848,-500.0,0.00023881,2]
[393755991,1762966237859,-790.9815619,0.00023881,2]
[393755993,1762966237868,-500.0,0.00023881,2]
[393755995,1762966237878,-500.0,0.00023881,2]
[393755997,1762966237887,-790.9815619,0.00023881,2]
[393755999,1762966237897,-500.0,0.00023881,2]
[393756001,1762966237906,-500.0,0.00023881,2]
[393756003,1762966237915,-500.0,0.00023881,2]
[393756005,1762966237925,-790.9815619,0.00023881,2]
[393756007,1762966237933,-500.0,0.00023881,2]
[393756008,1762966237943,-500.0,0.00023881,2]
[393756010,1762966237952,-790.9815619,0.00023881,2]
[393756012,1762966237961,-500.0,0.00023881,2]
[393756014,1762966237970,-500.0,0.00023881,2]
[393756016,1762966237979,-500.0,0.00023881,2]
[393756018,1762966237989,-500.0,0.00023881,2]
[393756020,1762966237998,-790.9815619,0.00023881,2]
[393756022,1762966238007,-790.9815619,0.00023881,2]
[393756024,1762966238017,-500.0,0.00023881,2]
[393756026,1762966238027,-500.0,0.00023881,2]
[393756028,1762966238037,-790.9815619,0.00023881,2]
[393756030,1762966238048,-500.0,0.00023881,2]
[393756032,1762966238058,-500.0,0.00023881,2]
[393756034,1762966238068,-790.9815619,0.00023881,2]
[393756036,1762966238079,-500.0,0.00023881,2]
[393756038,1762966238090,-790.9815619,0.00023881,2]
[393756040,1762966238104,-289.1361752,0.00023881,2]
[393756042,1762966238117,-790.9815619,0.00023881,2]
[393756044,1762966238128,-500.0,0.00023881,2]
[393756046,1762966238139,-790.9815619,0.00023881,2]
[393756048,1762966238149,-500.0,0.00023881,2]
[393756050,1762966238158,-790.9815619,0.00023881,2]
[393756052,1762966238168,-500.0,0.00023881,2]
[393756054,1762966238178,-790.9815619,0.00023881,2]
[393756056,1762966238188,-790.9815619,0.00023881,2]
[393756058,1762966238198,-790.9815619,0.00023881,2]
[393756060,1762966238207,-500.0,0.00023881,2]
[393756062,1762966238217,-790.9815619,0.00023881,2]
[393756064,1762966238227,-790.9815619,0.00023881,2]
[393756066,1762966238237,-500.0,0.00023881,2]
[393756068,1762966238247,-790.9815619,0.00023881,2]
[393756070,1762966238257,-650.0,0.00023881,2]
[393756072,1762966238267,-790.9815619,0.00023881,2]
[393756074,1762966238277,-790.9815619,0.00023881,2]
[393756075,1762966238288,-500.0,0.00023881,2]
[393756077,1762966238298,-790.9815619,0.00023881,2]
[393756079,1762966238308,-500.0,0.00023881,2]
[393756082,1762966238318,-790.9815619,0.00023881,2]
[393756083,1762966238329,-790.9815619,0.00023881,2]
[393756086,1762966238343,-790.9815619,0.00023881,2]
[393756088,1762966238353,-790.9815619,0.00023881,2]
[393756090,1762966238367,-790.9815619,0.00023881,2]
[393756092,1762966238378,-790.9815619,0.00023881,2]
[393756094,1762966238388,-790.9815619,0.00023881,2]
[393756096,1762966238398,-790.9815619,0.00023881,2]
[393756097,1762966238408,-790.9815619,0.00023881,2]
[393756099,1762966238420,-790.9815619,0.00023881,2]
[393756101,1762966238431,-790.9815619,0.00023881,2]
[393756103,1762966238441,-790.9815619,0.00023881,2]
[393756106,1762966238452,-790.9815619,0.00023881,2]
[393756107,1762966238462,-790.9815619,0.00023881,2]
[393756109,1762966238473,-790.9815619,0.00023881,2]
[393756111,1762966238483,-790.9815619,0.00023881,2]
[393756114,1762966238495,-790.9815619,0.00023881,2]
[393756116,1762966238506,-790.9815619,0.00023881,2]
[393756117,1762966238518,-790.9815619,0.00023881,2]
[393756120,1762966238532,-500.0,0.00023881,2]
[393756122,1762966238543,-500.0,0.00023881,2]
[393756124,1762966238555,-500.0,0.00023881,2]
[393756125,1762966238566,-500.0,0.00023881,2]
[393756127,1762966238578,-500.0,0.00023881,2]
[393756129,1762966238589,-500.0,0.00023881,2]
[393756131,1762966238601,-500.0,0.00023881,2]
[393756133,1762966238617,-500.0,0.00023881,2]
[393756135,1762966238628,-500.0,0.00023881,2]
[393756137,1762966238639,-500.0,0.00023881,2]
[393756139,1762966238649,-500.0,0.00023881,2]
[393756140,1762966238659,-500.0,0.00023881,2]
[393756141,1762966238670,-500.0,0.00023881,2]
[393756142,1762966238679,-500.0,0.00023881,2]
[393756143,1762966238690,-500.0,0.00023881,2]
[393756144,1762966238700,-500.0,0.00023881,2]
[393756145,1762966238709,-311.17245546,0.00023881,2]
[393756146,1762966238719,-500.0,0.00023881,2]
[393756147,1762966238728,-500.0,0.00023881,2]
[393756148,1762966238738,-500.0,0.00023881,2]
[393756149,1762966238748,-500.0,0.00023881,2]
[393756150,1762966238758,-500.0,0.00023881,2]
[393756151,1762966238768,-500.0,0.00023881,2]
[393756152,1762966238777,-500.0,0.00023881,2]
[393756153,1762966238787,-500.0,0.00023881,2]
[393756154,1762966238798,-500.0,0.00023881,2]
[393756155,1762966238808,-500.0,0.00023881,2]
[393756156,1762966238817,-500.0,0.00023881,2]
[393756157,1762966238827,-500.0,0.00023881,2]
[393756158,1762966238836,-500.0,0.00023881,2]
[393756159,1762966238845,-500.0,0.00023881,2]
[393756161,1762966238858,-500.0,0.00023881,2]
[393756163,1762966238867,-500.0,0.00023881,2]
[393756165,1762966238877,-500.0,0.00023881,2]
[393756167,1762966238887,-500.0,0.00023881,2]
[393756168,1762966238896,-500.0,0.00023881,2]
[393756171,1762966238906,-500.0,0.00023881,2]
[393756173,1762966238915,-500.0,0.00023881,2]
[393756174,1762966238925,-500.0,0.00023881,2]
[393756176,1762966238936,-500.0,0.00023881,2]
[393756179,1762966238945,-500.0,0.00023881,2]
[393756181,1762966238955,-500.0,0.00023881,2]
[393756182,1762966238965,-500.0,0.00023881,2]
[393756184,1762966238975,-340.25855777,0.00023881,2]
[393756186,1762966238986,-4023.99029007,0.00023881,2]
[393756188,1762966238996,-4023.99029007,0.00023881,2]
[393756190,1762966239006,-4023.99029007,0.00023881,2]
[393756193,1762966239017,-4023.99029007,0.00023881,2]
[393756195,1762966239027,-4023.99029007,0.00023881,2]
[393756197,1762966239037,-4023.99029007,0.00023881,2]
[393756198,1762966239047,-4023.99029007,0.00023881,2]
[393756201,1762966239058,-4023.99029007,0.00023881,2]
[393756203,1762966239069,-4023.99029007,0.00023881,2]
[393756204,1762966239079,-4023.99029007,0.00023881,2]
[393756206,1762966239089,-4023.99029007,0.00023881,2]
[393756208,1762966239100,-4023.99029007,0.00023881,2]
[393756211,1762966239112,-4023.99029007,0.00023881,2]
[393756212,1762966239122,-4023.99029007,0.00023881,2]
[393756215,1762966239132,-4023.99029007,0.00023881,2]
[393756217,1762966239143,-4023.99029007,0.00023881,2]
[393756218,1762966239152,-4023.99029007,0.00023881,2]
[393756221,1762966239163,-4023.99029007,0.00023881,2]
[393756223,1762966239173,-4023.99029007,0.00023881,2]
[393756224,1762966239183,-4023.99029007,0.00023881,2]
[393756227,1762966239194,-4023.99029007,0.00023881,2]
[393756228,1762966239203,-4023.99029007,0.00023881,2]
[393756230,1762966239213,-4023.99029007,0.00023881,2]
[393756232,1762966239223,-4023.99029007,0.00023881,2]
[393756234,1762966239234,-4023.99029007,0.00023881,2]
[393756236,1762966239244,-4023.99029007,0.00023881,2]
[393756238,1762966239255,-4023.99029007,0.00023881,2]
[393756240,1762966239269,-500.0,0.00023881,2]
[393756242,1762966239279,-500.0,0.00023882,2]
[393756244,1762966239289,-303.09393717,0.00023883,2]
[393756246,1762966239299,-500.0,0.00023883,2]
[393756248,1762966239309,-500.0,0.00023883,2]
[393756250,1762966239319,-500.0,0.00023883,2]
[393756252,1762966239330,-500.0,0.00023883,2]
[393756254,1762966239345,-500.0,0.00023883,2]
[393756257,1762966239357,-199.34802842,0.00023883,2]
[393756259,1762966239368,-102108.27309718,0.00023884,2]
[393756261,1762966239379,-500.0,0.00023885,2]
[393756262,1762966239389,-500.0,0.00023885,2]
[393756264,1762966239399,-500.0,0.00023885,2]
[393756266,1762966239408,-500.0,0.00023885,2]
[393756268,1762966239419,-500.0,0.00023885,2]
[393756270,1762966239428,-500.0,0.00023885,2]
[393756272,1762966239438,-500.0,0.00023885,2]
[393756274,1762966239447,-256.91459217,0.00023885,2]
[393756290,1762966239534,-182591.29018298,0.00023886,2]
[393756292,1762966239549,-873.65178104,0.00023886,2]
[393756294,1762966239560,-51396.27490661,0.00023886,2]
[393756297,1762966239578,-3428.37642227,0.00023886,2]
[393756305,1762966239641,-890.15205145,0.00023886,2]
[393756307,1762966239652,-281.00478041,0.00023886,2]
[393756309,1762966239667,-401.2941972,0.00023886,2]
[393756312,1762966239679,-396.88751354,0.00023886,2]
[393756314,1762966239691,-291.300155,0.00023886,2]
[393756316,1762966239702,-338.84055212,0.00023886,2]
[393756318,1762966239712,-4819.5,0.00023886,2]
[393756320,1762966239724,-16844.9999999,0.00023886,2]
[393756323,1762966239739,-5593.38452007,0.00023886,2]
[393756325,1762966239750,-28023.34088253,0.00023886,2]
[393756358,1762966240064,-429.42624312,0.00023886,2]
[393756361,1762966240076,-1724.87284989,0.00023886,2]
[393756363,1762966240087,-16488.49823964,0.00023886,2]
[393756699,1762966243129,-410.4537538,0.00023876,3]
[393756706,1762966243183,-386.8462462,0.00023876,3]
[393756708,1762966243199,-87.88632439,0.00023886,2]
[393756710,1762966243210,-30109.43775027,0.00023886,2]
[393757019,1762966246300,-324.79,0.00023876,10]